[Event "4NCL 2022-2023"]
[Site "Daventry"]
[Date "2023.01.14"]
[Round "3.22"]
[White "Robertson, J Stuart"]
[Black "Dong, Bao Nghia"]
[Result "0-1"]
[ECO "A57"]
[WhiteElo "2154"]
[BlackElo "2359"]
[Annotator "TA"]
[PlyCount "64"]
[EventDate "2022.10.20"]
[EventType "team-tourn"]
[EventCountry "ENG"]
[SourceTitle "playchess.com"]
[Source "ChessBase"]
[SourceQuality "1"]
[TimeControl "40/6000+30:2400+30"]

{[%evp 16,64,49,57,85,4,85,81,94,91,99,93,74,39,56,17,73,6,8,0,42,39,29,40,43,-76,-99,-70,-79,-179,-182,-481,-457,-472,-441,-898,-899,-860,-887,-1188,-1114,-1084,-1081,-2017,-1980,-1984,-1908,-5689,-5585,-1662,-1509]} 1. d4 {[%emt 0:08:22]} Nf6 {[%emt 0:00:17]} 2. c4 {[%emt 0:00:04]} g6 {[%emt 0:00:07]} 3. f3 {[%emt 0:00:06]} c5 {[%emt 0:00:45]} 4. d5 {[%emt 0:00:04]} b5 {[%emt 0:00:06]} 5. e4 {[%emt 0:00:07]} d6 {[%emt 0:00:06]} 6. cxb5 {[%emt 0:00:24]} a6 {[%emt 0:00:04]} 7. a4 {[%emt 0:00:09]} Bg7 {[%emt 0:00:08]} 8. Na3 {[%emt 0:01:57]} O-O {[%emt 0:00:32]} 9. Ne2 {[%emt 0:01:10]} axb5 {[%emt 0:02:37] A57: Benko/Volga Gambit.} 10. axb5 {[%emt 0:00:54]} ({White should try} 10. Nxb5 $16 Na6 11. Nec3) 10... Ne8 {[%emt 0:02:32]} (10... Nbd7 $11 {keeps the balance.}) 11. Nc3 $16 {[%emt 0:03:01]} f5 {[%emt 0:00:08] White is better.} 12. exf5 $1 {[%emt 0:05:01]} Bxf5 {[%emt 0:00:38]} 13. Be3 {[%emt 0:02:42]} Qa5 {[%emt 0:08:05]} 14. Qd2 {[%emt 0:07:08] aiming for Nc2.} (14. Qc1 $5 {[%cal Rf1e2]}) 14... Nd7 {[%emt 0:07:33]} 15. Be2 {[%emt 0:06:27] [#] And now g4 would win.} (15. Nc2 $5 {[%cal Ra1a5]} Qd8 16. Be2 $14) 15... Nb6 $146 {[%emt 0:00:22]} (15... Qb4 $1 $11 {remains equal.}) ({Predecessor:} 15... Ne5 16. O-O Nc7 17. Nc2 Qb6 18. b4 Bxc2 19. bxc5 dxc5 20. Qxc2 Nd7 21. Kh1 Bxc3 22. Qxc3 Nxd5 {½-½ Wang,P (2306)-Ritvin,S (2279) USA-ch U20 Dallas 2002 (1)}) 16. g4 {[%emt 0:21:31]} (16. Nc2 $16 Qxa1+ 17. Nxa1 Rxa1+ 18. Nd1) 16... Bd7 {[%emt 0:01:48]} (16... Bc8 {simplifies} 17. Nc2 Bxc3 18. Qxc3 Qxc3+ 19. bxc3 Rxa1+ 20. Nxa1 Nc7) 17. Nc2 {[%emt 0:03:42]} Qxa1+ {[%emt 0:00:06]} 18. Nxa1 {[%emt 0:00:06]} Rxa1+ {[%emt 0:00:05]} 19. Nd1 {[%emt 0:47:05] Threatens to win with b4.} Nc7 {[%emt 0:00:19][%csl LRb5,LRd5]} 20. Bh6 {[%emt 0:00:00] [#]} (20. O-O $14 {keeps the upper hand.}) 20... Bxh6 $1 $17 {[%emt 0:00:54] Black is much more active. The white rooks are badly placed.} 21. Qxh6 {[%emt 0:00:00] h4 would be deadly.} Bxb5 {[%emt 0:00:16]} 22. Qd2 {[%emt 0:00:00] [#]} (22. f4 $17) 22... Nc4 $1 $19 {[%emt 0:06:53]} (22... Nbxd5 23. Bxb5 Rf4 24. Be2 $18) 23. Qc3 {[%emt 0:00:00]} (23. Qc2 Rf4 24. O-O) 23... Ne5 {[%emt 0:00:08] Strongly threatening ...Bxe2. Black is clearly winning.} ({But not} 23... Nxd5 24. Bxc4 e6 25. Bxd5 exd5 26. Kf2 $18) 24. Qb3 {[%emt 0:00:00]} c4 {[%emt 0:04:22]} ({Not} 24... Bxe2 $2 25. Kxe2 Nxf3 26. Qxf3 Rxf3 27. Kxf3 $19) 25. Qc3 {[%emt 0:00:00]} (25. Qb4 $142 Rxf3 26. Qd2) 25... Nxd5 {[%emt 0:02:01][%cal Bc7d5,Bd5f4,Bf4g2][%mdl 32]} 26. Qd4 {[%emt 0:00:00]} Nf4 {[%emt 0:00:14]} (26... Nxf3+ $2 27. Bxf3 Nf4 28. Kd2 $18) 27. Qe4 {[%emt 0:01:11]} Bc6 {[%emt 0:01:04][%mdl 64] Skewer} 28. Bxc4+ {[%emt 0:00:16]} e6 {[%emt 0:00:07]} 29. Qc2 {[%emt 0:00:28]} Nxf3+ {[%emt 0:01:29]} 30. Kf2 {[%emt 0:00:10]} Nd4 {[%emt 0:03:34][%csl LRc2,LRh1][%mdl 64] Discovered Attack. White is weak on the light squares} 31. Qd2 {[%emt 0:00:44]} Ng2+ {[%emt 0:01:24] Excellent horsemanship.} 32. Kg3 {[%emt 0:01:08]} Rf3+ {[%emt 0:00:13] Excellently played by Dong!   Weighted Error Value: White=1.43/Black=0.17 (very precise)} (32... Rf4 $2 33. Rf1 Rxf1 34. Bxf1 $18 {[%mdl 64] Trapped Piece}) 0-1

[Event "4NCL 2022-2023"]
[Site "Daventry"]
[Date "2023.01.14"]
[Round "3.23"]
[White "Kueh, Audrey"]
[Black "Chan, Nevil"]
[Result "1-0"]
[ECO "B00"]
[WhiteElo "2123"]
[BlackElo "2001"]
[Annotator "TA"]
[PlyCount "59"]
[EventDate "2022.10.20"]
[EventType "team-tourn"]
[EventCountry "ENG"]
[SourceTitle "playchess.com"]
[Source "ChessBase"]
[SourceQuality "1"]
[TimeControl "40/6000+30:2400+30"]

{[%evp 9,59,69,70,56,83,79,79,26,70,81,81,78,70,74,92,83,104,106,126,127,188,174,179,170,169,172,204,179,183,183,200,189,241,183,184,179,169,175,199,197,216,217,490,504,505,452,561,537,692,686,658,668]} 1. e4 {[%emt 0:00:15]} b6 {[%emt 0:00:50]} 2. d4 {[%emt 0:00:32]} Bb7 {[%emt 0:00:21]} 3. Bd3 {[%emt 0:00:58]} Nf6 {[%emt 0:01:38]} 4. Qe2 {[%emt 0:00:24]} Nc6 {[%emt 0:01:05]} 5. c3 {[%emt 0:03:03]} e5 {[%emt 0:01:01]} 6. Nf3 {[%emt 0:12:03] B00: Queen's Fianchetto Defence, Nimzowitsch Defence.} d6 {[%emt 0:01:43]} 7. O-O {[%emt 0:02:21]} Be7 {[%emt 0:02:56]} 8. a4 {[%emt 0:09:54]} ({White should play} 8. a3 $16) 8... a6 {[%emt 0:05:32]} 9. d5 {[%emt 0:03:29] White stays focused until the end.} Nb8 {[%emt 0:00:34]} 10. a5 {[%emt 0:00:10] [#]} O-O $146 {[%emt 0:12:00]} ({Predecessor:} 10... Nfd7 11. c4 c6 12. axb6 cxd5 13. cxd5 O-O 14. Nc3 f5 15. Nd2 fxe4 16. Bxe4 Nxb6 {1-0 Krivoborodov,E (2414)-Vymazal,B (2305) Pardubice op-A 2006 (6)}) 11. axb6 {[%emt 0:00:07]} cxb6 {[%emt 0:00:12]} 12. Be3 {[%emt 0:08:38]} Nfd7 {[%emt 0:06:28]} 13. Nbd2 {[%emt 0:01:25] White is much more active.} Qc8 {[%emt 0:10:50]} 14. Nc4 {[%emt 0:06:51]} b5 {[%emt 0:02:00]} (14... Qc7 $16 {was worth a try.}) 15. Na5 $18 {[%emt 0:00:03]} Bd8 {[%emt 0:02:46]} 16. c4 {[%emt 0:05:02]} Bxa5 {[%emt 0:22:57]} 17. Rxa5 {[%emt 0:00:08]} Qc7 {[%emt 0:00:37]} 18. Rfa1 {[%emt 0:04:53]} bxc4 {[%emt 0:03:58]} 19. Bxc4 {[%emt 0:00:03]} Rc8 {[%emt 0:00:42]} 20. Bd3 {[%emt 0:04:42]} Nb6 {[%emt 0:06:57]} (20... Nf6 $142 21. Nh4 g6) 21. Nd2 {[%emt 0:03:39]} N8d7 {[%emt 0:09:04]} 22. Bxa6 {[%emt 0:00:39]} Bxa6 {[%emt 0:02:59]} 23. Rxa6 {[%emt 0:00:07]} Rxa6 {[%emt 0:01:38]} 24. Rxa6 {[%emt 0:00:06]} ({Don't take} 24. Qxa6 Ra8 25. Qf1 Rxa1 26. Qxa1 h6) 24... Nc5 {[%emt 0:08:24]} 25. Ra1 {[%emt 0:08:20]} Nbd7 $2 {[%emt 0:01:25]} (25... Rb8 26. b4 Ncd7) 26. b4 {[%emt 0:02:51] White is clearly winning.} Nb7 {[%emt 0:00:14]} 27. Ra7 {[%emt 0:01:57]} Rb8 {[%emt 0:01:21]} 28. Qb5 {[%emt 0:02:21] [#] Hoping for Qc6.} Qc1+ {[%emt 0:01:18]} 29. Nf1 {[%emt 0:00:08]} Qc8 {[%emt 0:00:12]} 30. Qc6 {[%emt 0:00:07] Weighted Error Value: White=0.09 (flawless) /Black=0.38} 1-0

[Event "4NCL 2022-2023"]
[Site "Daventry"]
[Date "2023.01.14"]
[Round "3.24"]
[White "Sivanandan, Bodhana"]
[Black "Milson, Samuel A"]
[Result "0-1"]
[ECO "C02"]
[WhiteElo "1718"]
[BlackElo "2090"]
[Annotator "TA"]
[PlyCount "94"]
[EventDate "2022.10.20"]
[EventType "team-tourn"]
[EventCountry "ENG"]
[SourceTitle "playchess.com"]
[Source "ChessBase"]
[SourceQuality "1"]
[TimeControl "40/6000+30:2400+30"]

{[%evp 10,93,0,0,0,-31,-32,-36,-48,-35,-24,-37,-38,-38,-38,-81,-68,-79,-9,-28,99,95,117,14,14,16,14,6,15,-340,-354,-329,-345,-319,-310,-503,-485,-562,-539,-552,-547,-533,-552,-555,-463,-473,-462,-480,-480,-460,-464,-429,-459,-479,-469,-530,-515,-581,-594,-570,-556,-531,-517,-575,-436,-1483,-1395,-1604,-1551,-1062,-909,-5427,-1991,-29970,-29963,-29979,-29980,-29980,-29979,-29979,-29968,-29989,-29990,-29994,-29995,-29999]} 1. e4 {[%emt 0:00:03]} e6 {[%emt 0:00:12]} 2. d4 {[%emt 0:00:16]} d5 {[%emt 0:00:12]} 3. e5 {[%emt 0:00:19]} c5 {[%emt 0:00:15]} 4. c3 {[%emt 0:00:18]} Nc6 {[%emt 0:00:14]} 5. Nf3 {[%emt 0:00:43]} Bd7 {[%emt 0:00:19]} 6. Bd3 {[%emt 0:00:49]} cxd4 {[%emt 0:00:19] C02: French: Advance Variation.} 7. O-O {[%emt 0:01:33]} dxc3 $1 {[%emt 0:00:27] 7...dxc3 is better than 7...Qb6.} 8. Nxc3 {[%emt 0:00:45]} Nge7 {[%emt 0:00:20] Black is slightly better.} 9. Bg5 {[%emt 0:00:20] Threatens to win with Nb5.} Qb8 {[%emt 0:00:19]} 10. Re1 {[%emt 0:01:39]} Ng6 {[%emt 0:00:56]} 11. Bxg6 {[%emt 0:08:09]} hxg6 {[%emt 0:00:11] [#]} 12. Bf4 $146 {[%emt 0:08:49]} ({Predecessor:} 12. Qd2 b5 13. Qf4 Qb7 14. Rad1 Rc8 15. Ne2 Bb4 16. Rf1 Bc5 17. Nc1 Bb6 18. Nd3 {0-1 Tukhaev,A (2534)-Van Wely,L (2612) Abu Dhabi op 27th rapid 2021 (6)}) 12... Be7 {[%emt 0:18:47]} 13. Ne2 {[%emt 0:10:43] [#]} g5 {[%emt 0:10:00]} 14. Nxg5 $11 {[%emt 0:11:33]} Nxe5 {[%emt 0:06:36]} (14... Qd8 $11 {remains equal.} 15. Nf3 g5) 15. Nd4 $16 {[%emt 0:05:27]} Bd6 {[%emt 0:03:43][%cal Be7d6,Bd6f4,Bf4h2,Bh2e5][%mdl 32] [#]} 16. Nf5 $1 {[%emt 0:04:05][%mdl 512]} Nf3+ $11 {[%emt 0:10:17][%mdl 64] Discovered Attack} 17. Qxf3 {[%emt 0:01:26]} (17. gxf3 $2 {perishes.} Bxf4 18. Qd4 Bxg5 $19) 17... Bxf4 {[%emt 0:01:16]} 18. Nxg7+ {[%emt 0:02:27]} Ke7 $1 {[%emt 0:11:24] Some like it hot} 19. Nh3 $2 {[%emt 0:07:32][%mdl 8192] This move loses the game for White.} ({Don't go for} 19. Qa3+ $2 Kf6 20. g3 Bxg5 $19) (19. Qxd5 $11 {and White is okay.} Bxh2+ 20. Kf1) 19... Bxh2+ $19 {[%emt 0:02:39] This pair of bishops is nice.} 20. Kh1 {[%emt 0:00:36] Nf5+ would be deadly.} Be5 {[%emt 0:01:15]} 21. Nh5 {[%emt 0:05:29]} Qd6 {[%emt 0:03:57]} ({Inferior is} 21... Bxb2 22. Rad1 $19 (22. Rab1 Be5 $17)) 22. Qe2 $2 {[%emt 0:04:39]} (22. Qg4 Rag8 23. Qh4+ f6 24. Re2) 22... f6 {[%emt 0:01:29]} 23. Rad1 {[%emt 0:08:03]} Rag8 {[%emt 0:03:21] Repels f4. aiming for ...d4.} 24. f4 {[%emt 0:02:17]} Bxf4 {[%emt 0:03:34]} 25. N5xf4 {[%emt 0:00:23]} Qxf4 {[%emt 0:01:00]} 26. Rxd5 {[%emt 0:00:47]} Qg4 {[%emt 0:00:53]} 27. Qxg4 {[%emt 0:05:19]} Rxg4 {[%emt 0:00:28]} 28. Kh2 {[%emt 0:01:55]} Rhg8 {[%emt 0:05:24]} 29. Rd2 {[%emt 0:00:29]} Bc6 {[%emt 0:00:28][%cal Rg4g2]} 30. Ree2 {[%emt 0:00:38]} e5 {[%emt 0:00:45]} 31. a3 {[%emt 0:01:23]} a5 {[%emt 0:00:38]} 32. Rf2 {[%emt 0:02:56] [#]} f5 $1 {[%emt 0:02:25][%mdl 512]} 33. b4 {[%emt 0:01:12]} (33. Kg1 f4) 33... axb4 {[%emt 0:01:00]} 34. axb4 {[%emt 0:00:18]} Ke6 {[%emt 0:00:46]} 35. Rb2 {[%emt 0:01:00]} b5 {[%emt 0:05:14][%cal Bb7b5,Bb5c4][%mdl 32]} 36. Rbc2 {[%emt 0:02:18]} Rc4 {[%emt 0:00:48]} 37. g3 {[%emt 0:02:09]} (37. Rce2 $142) 37... Rh8 {[%emt 0:02:26]} 38. Rxc4 {[%emt 0:02:03]} bxc4 {[%emt 0:00:09][%mdl 4096] Endgame KRB-KRN} 39. Rc2 {[%emt 0:01:58]} Kd5 {[%emt 0:01:42] White must now prevent ...Kd4.} 40. Rd2+ {[%emt 0:00:20] [#]} Ke4 $1 {[%emt 0:00:17]} 41. Re2+ {[%emt 0:40:22]} Kf3 {[%emt 0:42:00] Black mates.} 42. Rxe5 {[%emt 0:01:06]} Kg4 {[%emt 0:00:09]} 43. Rc5 {[%emt 0:00:14]} Rxh3+ {[%emt 0:00:22]} 44. Kg1 {[%emt 0:00:13]} Be4 {[%emt 0:02:29]} 45. Rxc4 {[%emt 0:00:44]} Kxg3 {[%emt 0:00:11][%csl Ge4][%cal Rh3h1]} 46. Rc3+ {[%emt 0:00:25]} Bf3 {[%emt 0:00:09][%csl Gf3][%cal Rh3h1]} 47. b5 {[%emt 0:01:03]} Rh1# {[%emt 0:00:07] Artfully played by Milson.   Weighted Error Value: White=0.74/Black=0.17 (very precise)} 0-1

[Event "4NCL 2022-2023"]
[Site "Daventry"]
[Date "2023.01.14"]
[Round "3.25"]
[White "Jones, Gawain C B"]
[Black "Delaney, Killian"]
[Result "1-0"]
[ECO "B22"]
[WhiteElo "2623"]
[BlackElo "2294"]
[Annotator "TA"]
[PlyCount "55"]
[EventDate "2022.10.20"]
[EventType "team-tourn"]
[EventCountry "ENG"]
[SourceTitle "playchess.com"]
[Source "ChessBase"]
[SourceQuality "1"]
[TimeControl "40/6000+30:2400+30"]

{[%evp 19,55,6,16,0,0,0,0,0,0,0,-8,4,187,188,302,300,278,259,318,318,401,385,447,440,440,426,431,431,1998,975,963,891,936,891,791,783,1029,729]} 1. Nf3 {[%emt 0:01:25]} c5 {[%emt 0:00:21]} 2. e4 {[%emt 0:01:23]} e6 {[%emt 0:00:24]} 3. c3 {[%emt 0:00:21]} Nf6 {[%emt 0:02:03]} 4. e5 {[%emt 0:00:06]} Nd5 {[%emt 0:00:06]} 5. d4 {[%emt 0:00:53]} cxd4 {[%emt 0:00:20]} 6. cxd4 {[%emt 0:00:06]} d6 {[%emt 0:03:11]} 7. Bc4 {[%emt 0:00:07]} Nc6 {[%emt 0:01:51]} 8. O-O {[%emt 0:00:34]} Be7 {[%emt 0:01:40]} 9. Qe2 {[%emt 0:01:05]} O-O {[%emt 0:01:08]} 10. Rd1 {[%emt 0:00:09][%cal Bf1d1,Bd1d3,Bd3d5][%mdl 32]} Na5 {[%emt 0:06:11]} 11. Bd3 {[%emt 0:02:47] B22: Sicilian: 2 c3.} Nb4 $1 {[%emt 0:00:45]} 12. Nc3 $1 {[%emt 0:00:12][%mdl 4] is more profitable than 12.exd6 at the moment.} Nxd3 {[%emt 0:00:26]} 13. Rxd3 {[%emt 0:00:06] The position is equal.} b6 {[%emt 0:17:28] White must now prevent ...Ba6.} 14. b4 {[%emt 0:00:12]} Nc6 {[%emt 0:00:24]} 15. a3 {[%emt 0:00:21] [#]} f5 $146 {[%emt 0:05:56] [#]} (15... Bb7 $11) ({Predecessor:} 15... Bb7 16. Bf4 Rc8 17. Qd2 d5 18. h4 b5 19. h5 a5 20. h6 g6 21. Nxb5 Ba6 {1-0 Yudin,S (2599)-Moiseenko,A (2577) Wch Blitz Almaty 2022 (17)}) 16. exd6 $1 $18 {[%emt 0:13:53]} Bxd6 {[%emt 0:04:41] [#]} (16... Qxd6 $142 17. d5 exd5) 17. d5 $1 {[%emt 0:01:02]} exd5 {[%emt 0:00:54]} 18. Rxd5 {[%emt 0:02:13]} Qf6 {[%emt 0:04:32]} 19. Bb2 {[%emt 0:07:55] Threatens to win with Nb5.} Be7 {[%emt 0:00:38]} 20. Re1 {[%emt 0:05:19]} Rf7 {[%emt 0:00:51]} 21. Nb5 {[%emt 0:10:26] White is clearly winning.} Qg6 {[%emt 0:01:55]} 22. Nc7 {[%emt 0:01:55]} Rb8 {[%emt 0:00:31]} 23. b5 {[%emt 0:07:39]} Bd8 {[%emt 0:03:48]} (23... Rb7 $142 24. bxc6 Rxc7) 24. bxc6 {[%emt 0:06:07]} (24. Ne5 $142 Nxe5 25. Rxd8+ Rf8 26. Rxf8+ Kxf8 27. Qxe5) 24... Bxc7 {[%emt 0:00:12]} 25. Qe8+ {[%emt 0:00:34]} Rf8 {[%emt 0:00:08]} 26. Qxg6 {[%emt 0:02:59]} hxg6 {[%emt 0:00:05]} 27. Ng5 {[%emt 0:01:02] Threatening mate with Re7.} Bd8 {[%emt 0:00:58] [#] Dodges Re7} 28. Rxd8 $1 {[%emt 0:02:07][%mdl 576] Decoy, Promotion. Black did not feel at home in the position after the opening.   Weighted Error Value: White=0.05 (flawless) /Black=0.43} 1-0

[Event "4NCL 2022-2023"]
[Site "Daventry"]
[Date "2023.01.14"]
[Round "3.26"]
[White "Wall, Gavin"]
[Black "Alsina Leal, Daniel"]
[Result "1/2-1/2"]
[ECO "C02"]
[WhiteElo "2286"]
[BlackElo "2520"]
[Annotator "TA"]
[PlyCount "71"]
[EventDate "2022.10.20"]
[EventType "team-tourn"]
[EventCountry "ENG"]
[SourceTitle "playchess.com"]
[Source "ChessBase"]
[SourceQuality "1"]
[TimeControl "40/6000+30:2400+30"]

{[%evp 11,71,21,31,26,32,28,38,22,25,25,55,56,66,55,60,42,44,22,27,18,71,18,18,27,20,20,33,24,33,14,22,15,35,0,0,0,58,3,0,0,0,0,199,201,207,0,0,0,322,319,855,0,84,0,0,0,0,0,0,0,0,0]} 1. e4 {[%emt 0:00:05]} e6 {[%emt 0:03:51]} 2. d4 {[%emt 0:00:48]} d5 {[%emt 0:00:09]} 3. e5 {[%emt 0:00:06]} c5 {[%emt 0:00:11]} 4. c3 {[%emt 0:00:05]} Nc6 {[%emt 0:00:07]} 5. Nf3 {[%emt 0:00:05]} Nh6 {[%emt 0:00:10]} 6. Bd3 {[%emt 0:01:06]} Nf5 {[%emt 0:00:35][%cal Rc5d4]} 7. dxc5 {[%emt 0:04:50] Recently 7.0-0 got a lot of attention. C02: French: Advance Variation.} Nh4 {[%emt 0:00:38]} 8. Nxh4 {[%emt 0:02:19]} Qxh4 {[%emt 0:00:07]} 9. Qe2 {[%emt 0:01:56] White is slightly better.} Bxc5 {[%emt 0:00:26]} 10. Nd2 {[%emt 0:05:40] [#]} Bb6 $146 {[%emt 0:08:55]} ({Predecessor:} 10... Nxe5 11. Qxe5 Qxf2+ 12. Kd1 Qxg2 13. Rf1 O-O 14. Rf3 f6 15. Qh5 g6 16. Qh4 e5 {1-0 Nozdrachev,V (2358)-Borisova,E (2229) Moscow Region-ch op 2009 (5)}) 11. Nf3 {[%emt 0:03:33]} Qe7 {[%emt 0:02:33]} 12. O-O {[%emt 0:04:02]} Bd7 {[%emt 0:03:42]} 13. b4 {[%emt 0:10:02]} f6 {[%emt 0:12:38]} 14. Bf4 {[%emt 0:06:43]} Rc8 {[%emt 0:10:46]} 15. a4 {[%emt 0:07:33]} Bc7 {[%emt 0:12:12]} (15... O-O $11) 16. b5 {[%emt 0:06:38] White is more active.} (16. exf6 $16 gxf6 17. Bxc7 Rxc7 18. b5) 16... Nxe5 $11 {[%emt 0:01:53]} 17. Nxe5 {[%emt 0:03:00]} fxe5 {[%emt 0:02:08]} 18. Bxe5 {[%emt 0:00:04]} Bxe5 {[%emt 0:00:37]} 19. Qxe5 {[%emt 0:00:02]} O-O {[%emt 0:01:27]} 20. Rac1 {[%emt 0:00:42]} Rc5 {[%emt 0:25:28]} 21. f4 {[%emt 0:02:34]} g6 {[%emt 0:13:07]} 22. h4 {[%emt 0:27:30]} Qg7 {[%emt 0:01:06]} (22... Qxh4 $2 23. Qd6 b6 24. Qxd7 $18) 23. Qd6 {[%emt 0:01:00]} Rfc8 {[%emt 0:01:48]} (23... b6 $11) 24. Rf3 {[%emt 0:00:23]} (24. h5 $1 $14 Rxc3 25. Rxc3 Rxc3 26. h6) 24... Rxc3 {[%emt 0:01:41]} 25. Rxc3 {[%emt 0:00:03]} Rxc3 {[%emt 0:00:09]} 26. Kh2 {[%emt 0:01:26][%cal Oh4h5] And now h5! would win.} Be8 $2 {[%emt 0:03:07]} (26... Bc8 $11 {and Black is okay.}) 27. Qxe6+ $18 {[%emt 0:04:41]} Bf7 {[%emt 0:00:05]} 28. Qe3 {[%emt 0:02:55]} ({White should play} 28. Qe7 $18) 28... Qf6 $11 {[%emt 0:00:43]} 29. h5 {[%emt 0:04:23]} Kg7 $2 {[%emt 0:02:29][%mdl 8192]} (29... gxh5 $2 30. Bxh7+ (30. Qxa7 Qh4+ 31. Kg1 Qe1+ 32. Rf1 Qd2 $16) 30... Kxh7 31. Qxc3 Qh4+ 32. Kg1 $18) (29... b6 $11 {and Black stays safe.}) 30. h6+ $18 {[%emt 0:01:25]} Kxh6 $2 {[%emt 0:00:31] [#]} (30... Kg8 31. Qxa7 Qh4+ 32. Kg1 Qe1+ 33. Rf1 Qe7) 31. Qxa7 $2 {[%emt 0:01:57]} (31. g4 $1 $18 {[%cal Rg4g5] g5+ would kill now.} Kg7 32. g5 (32. Qxa7 Ra3 $15)) 31... Kg7 {[%emt 0:01:37] [#]} (31... Be6 $11 32. Qxb7 Qh4+ 33. Kg1 Bg4 34. Bxg6 Rc1+ 35. Rf1 Rxf1+ 36. Kxf1 Qh1+ 37. Kf2 Qh4+ 38. Kf1 Qh1+ 39. Kf2 Qh4+ 40. Kf1) 32. Qxb7 {[%emt 0:05:08]} ({Better is} 32. a5 $1 $16) 32... Qh4+ $11 {[%emt 0:00:45] The position is equal.} 33. Kg1 {[%emt 0:00:04] Black must now prevent Qb8.} Qe1+ {[%emt 0:00:20]} 34. Kh2 {[%emt 0:00:08]} Qh4+ {[%emt 0:00:45]} 35. Kg1 {[%emt 0:00:03] aiming for Qb8.} Qe1+ {[%emt 0:00:15]} 36. Kh2 {[%emt 0:00:03] Weighted Error Value: White=0.37/Black=0.46} 1/2-1/2

[Event "4NCL 2022-2023"]
[Site "Daventry"]
[Date "2023.01.14"]
[Round "3.27"]
[White "Rowson, Jonathan"]
[Black "Thorarinsson, Pall A."]
[Result "1-0"]
[ECO "D45"]
[WhiteElo "2550"]
[BlackElo "2172"]
[Annotator "TA"]
[PlyCount "57"]
[EventDate "2022.10.20"]
[EventType "team-tourn"]
[EventCountry "ENG"]
[SourceTitle "playchess.com"]
[Source "ChessBase"]
[SourceQuality "1"]
[TimeControl "40/6000+30:2400+30"]

{[%evp 14,57,-22,-28,7,-10,-21,-19,60,39,49,65,73,85,147,140,161,170,166,173,178,183,185,172,390,215,190,178,138,104,168,166,164,130,129,130,127,127,135,131,135,129,418,394,418,409]} 1. d4 {[%emt 0:05:10]} d5 {[%emt 0:00:28]} 2. c4 {[%emt 0:01:58]} c6 {[%emt 0:00:59]} 3. Nc3 {[%emt 0:00:38]} Nf6 {[%emt 0:01:45]} 4. e3 {[%emt 0:00:18]} e6 {[%emt 0:00:47][%cal Be7e6,Be6e5,Be5e4][%mdl 32]} 5. Nf3 {[%emt 0:02:07][%cal Bg1f3,Bf3h2,Bh2g4][%mdl 32]} Nbd7 {[%emt 0:01:18]} 6. Qc2 {[%emt 0:00:12]} Bd6 {[%emt 0:05:10]} 7. Bd2 {[%emt 0:01:57]} O-O {[%emt 0:01:35]} 8. h3 {[%emt 0:00:13]} e5 {[%emt 0:03:08] D45: Semi-Slav: 5 e3.} 9. O-O-O {[%emt 0:09:43] [#]} e4 $146 {[%emt 0:25:38]} ({Predecessor:} 9... Re8 10. Kb1 e4 11. Ng1 dxc4 12. Bxc4 Nb6 13. Bb3 Be6 14. Bxe6 Rxe6 15. Nge2 Nbd5 16. Nxd5 cxd5 {½-½ Weise,D-Capelan,G GER-ch48 Kandidatenturnier09 1964 (9)}) 10. Nh2 {[%emt 0:00:41]} c5 {[%emt 0:22:43]} (10... Qe7 $11) 11. Ng4 $14 {[%emt 0:08:12]} cxd4 {[%emt 0:20:08]} 12. exd4 {[%emt 0:00:19]} Bb4 {[%emt 0:00:24]} 13. c5 {[%emt 0:10:49]} ({Much weaker is} 13. Nxd5 Nxd5 14. cxd5 Bxd2+ 15. Qxd2 (15. Rxd2 Nf6 $11) 15... Nb6 $11) 13... Nxg4 {[%emt 0:08:10]} (13... Qa5 $142) 14. hxg4 $16 {[%emt 0:00:29][%cal Bh3g4,Bg4g5][%mdl 32]} Nf6 {[%emt 0:00:17] [#]} 15. f3 {[%emt 0:02:15]} Re8 {[%emt 0:05:39]} 16. g5 {[%emt 0:01:42]} Bxc3 {[%emt 0:00:37]} 17. Qxc3 {[%emt 0:01:01]} Nd7 {[%emt 0:04:36] Black is weak on the dark squares} 18. fxe4 {[%emt 0:02:31]} dxe4 {[%emt 0:00:24] [#]} (18... Rxe4 19. Bd3 Nf8 20. Bxe4 dxe4) 19. Bc4 {[%emt 0:13:47]} (19. g6 $142 Nf6 20. gxf7+ Kxf7 21. Bc4+ Be6 22. d5 Nxd5 23. Qg3 (23. Bxd5 Qxd5 24. Rxh7 Rg8 $18)) 19... Nf8 $18 {[%emt 0:00:21]} 20. d5 {[%emt 0:06:14]} Bf5 {[%emt 0:01:15]} 21. Rhf1 {[%emt 0:13:23]} Bg6 {[%emt 0:00:38]} (21... Bg4 $16) 22. Be3 $36 {[%emt 0:02:33][%mdl 2048] Keeping Black busy.} Nd7 {[%emt 0:01:56]} 23. Bb5 {[%emt 0:01:52]} ({But not} 23. c6 Rc8 $16) 23... Rc8 {[%emt 0:00:34][%cal Od7c5]} 24. Bxd7 {[%emt 0:02:58]} Qxd7 {[%emt 0:00:10]} 25. b3 {[%emt 0:00:43]} Rc7 {[%emt 0:03:12]} 26. Kb2 {[%emt 0:00:19] White is more active.} Qg4 {[%emt 0:00:21]} 27. Rd2 {[%emt 0:01:37]} Rec8 $2 {[%emt 0:00:27][%mdl 8192]} (27... Rd7 $16 {is a better defense.} 28. d6 Qe6) 28. Qe5 {[%emt 0:01:25]} f6 {[%emt 0:01:16]} 29. gxf6 {[%emt 0:00:18] Weighted Error Value: White=0.13 (very precise) /Black=0.44} 1-0